Cogmind - Beta 13 @@@ ROGUE MODE // 2024.04.15 @ 13:38:01 Player: Grizzly Result: Destroyed by D-53 Grenadier with Mini Grenade Launcher Performance ------------- Evolutions (0) 0 Regions Visited (2) 400 Robots Destroyed (20) 100 Value Destroyed (538) 538 Prototype IDs (0) 0 Alien Tech Used (0) 0 Bonus (0) 0 TOTAL SCORE: 1038 Bonus ------- None Cogmind --------- Core Integrity 0/250 Matter 300/300 Energy 99/100 System Corruption 0% Temperature Cool (0) Movement Core (50) Location -10/Mines Parts ------- > --- POWER (1) -------- (None) > --- PROPULSION (2) --- (None) > --- UTILITY (2) ------ Power Shielding > --- WEAPON (2) ------- (None) > --- INVENTORY (5) ---- Heat Sink Sensor Array Medium Armor Plating Peak State ------------ > --- POWER ------------ Light Ion Engine > --- PROPULSION ------- Improved Hover Unit Improved Hover Unit > --- UTILITY ---------- Small Battery Medium Armor Plating > --- WEAPON ----------- Heavy EM Pulse Gun Heavy EM Pulse Gun > --- INVENTORY -------- Improved Hover Unit Medium Armor Plating Medium Armor Plating Heavy EM Pulse Gun Heavy EM Pulse Gun [Rating: 13] Favorites ----------- Power Light Ion Engine Engine Light Ion Engine Propulsion Improved Hover Unit Leg Aluminum Leg Hover Unit Improved Hover Unit Flight Unit Flight Unit Utility Small Battery Storage Small Battery Protection Power Shielding Weapon Heavy EM Pulse Gun Energy Gun Heavy EM Pulse Gun Ballistic Gun Assault Rifle Build | -11 -10 -10 ------- Run | Yrd Mat Min Slots Evolved . | . . . Power . | . . . Propulsion . | . . . Utility . | . . . Weapon . | . . . Parts Attached 22 | 5 15 2 Power 4 | 1 3 . Engine 4 | 1 3 . Core . | . . . Reactor . | . . . Propulsion 7 | 2 4 1 Treads . | . . . Leg 3 | 2 . 1 Wheel . | . . . Hover 2 | . 2 . Flight 2 | . 2 . Utility 4 | . 3 1 Device . | . . . Storage 1 | . 1 . Processor . | . . . Hackware . | . . . Protection 3 | . 2 1 Artifact . | . . . Weapon 7 | 2 5 . Energy Gun 4 | . 4 . Energy Cannon . | . . . Ballistic Gun 3 | 2 1 . Ballistic Cannon . | . . . Launcher . | . . . Special Weapon . | . . . Impact Weapon . | . . . Slashing Weapon . | . . . Piercing Weapon . | . . . Special Melee Weapon . | . . . Unidentified Prototypes . | . . . Parts Lost 7 | . . 7 Power . | . . . Propulsion 3 | . . 3 Utility 2 | . . 2 Weapon 2 | . . 2 Highest Loss Streak 6 | . . 6 To Critical Strikes . | . . . Average Slot Usage (%) 87 | . 89 68 Engine 8 | . 9 . Leg 6 | . 6 8 Hover 12 | . 13 . Flight 8 | . 8 12 Storage 12 | . 13 10 Protection 11 | . 10 16 Energy Gun 20 | . 20 22 Ballistic Gun 6 | . 6 . Naked Turns . | . . . Heaviest Build 17 | 6 17 8 Greatest Support 20 | 20 20 10 Greatest Overweight (x) 3 | . 3 2 Average Overweight (x) . | . . . Largest Inventory Capacity 5 | 5 5 5 Average Capacity 5 | 5 5 5 Most Carried 5 | 5 5 4 Average Carried 3 | 2 4 3 Final Capacity 5 | 5 5 5 Final Carried 3 | 3 3 3 Class Distribution -------------------- 100% | Mutant Dominant Class ---------------- Mutant | -10/Materials Mutant | -10/Mines Resources | -11 -10 -10 ----------- Run | Yrd Mat Min Matter Collected 428 | 266 152 10 Remotely . | . . . Salvage Created 661 | 48 519 94 Parts 46 | 3 39 4 Haulers Intercepted . | . . . Recyclers Shooed . | . . . Parts Field Recycled . | . . . Retrieved Matter . | . . . Parts Self-Destructed . | . . . Prevented . | . . . Kills | -11 -10 -10 ------- Run | Yrd Mat Min Combat Hostiles Destroyed 14 | 1 11 2 Guns 10 | 1 8 1 AOE 4 | . 3 1 Classes Destroyed 5 | 1 4 . Builder 1 | . 1 . Operator 2 | . 2 . Watcher 3 | . 3 . Swarmer 3 | . 3 . Grunt 11 | 1 8 2 Best Kill Streak 5 | 1 5 3 Combat Bots Only 3 | 1 3 2 Max Kills in Single Turn 2 | 1 2 1 Gunslinging 1 | . 1 . Exploded 1 | . 1 1 Melee . | . . . Uniques/NPCs Destroyed . | . . . Combat | -11 -10 -10 -------- Run | Yrd Mat Min Hostile Shots Fired 48 | 2 30 16 Missed 12 | . 11 1 Damage Taken 863 | 23 255 585 Core 305 | . 53 252 Absorbed by Shields . | . . . Redirected to Shielding 9 | . 9 . Regen/Repaired (Parts) 56 | . 56 . Core Remaining (%) 100 | 100 . . Volleys Fired 38 | 4 29 5 Largest 2 | 2 2 2 Hottest 90 | 40 90 90 Shots Fired 76 | 8 58 10 Gun 76 | 8 58 10 Cannon . | . . . Launcher . | . . . Special . | . . . Kinetic 10 | 8 2 . Thermal . | . . . Explosive . | . . . Electromagnetic 66 | . 56 10 Robot Hit Streak 7 | 5 7 7 Robot Miss Streak 3 | 1 3 2 Penetration Max . | . . . Secondary Targets 3 | . 3 . Max Gunslinging Chain 1 | . 1 . Shots Hit Robots 43 | 7 29 7 Core Hits 23 | 2 18 3 Critical Kills . | . . . Critical Parts Destroyed . | . . . Critical Strikes 1 | . 1 . Corrupt 1 | . 1 . Melee Attacks . | . . . Impact . | . . . Slashing . | . . . Piercing . | . . . Sneak Attacks . | . . . Combat Hostiles . | . . . Follow-up Attacks . | . . . Damage Inflicted 1092 | 69 832 191 Guns 756 | 69 560 127 Cannons . | . . . Explosions 327 | . 263 64 Melee . | . . . Ramming 9 | . 9 . Kinetic 69 | 69 . . Thermal 327 | . 263 64 Explosive . | . . . Electromagnetic 687 | . 560 127 Impact . | . . . Slashing . | . . . Piercing . | . . . Highest Corruption . | . . . Average Corruption . | . . . Corruption Purged . | . . . Corruption Blocked . | . . . Overload Shots . | . . . Overflow Damage 1 | . . 1 Projectiles . | . . . Explosions 1 | . . 1 Melee . | . . . Knockbacks . | . . . Impact . | . . . Kinetic . | . . . Secondary . | . . . Self-Inflicted Damage 50 | . 33 17 Shots 2 | . 1 1 Rammed 1 | . 1 . Targets Rammed 1 | . 1 . Kicked . | . . . Crushed . | . . . Highest Temperature 253 | 12 253 84 Average Temperature 88 | 10 95 38 Received Heat Transfer 144 | 12 114 18 Siege Activations . | . . . Robots Corrupted 1 | . 1 . Combat Hostiles . | . . . Parts Fried 4 | . 4 . Impact Corruptions . | . . . Robots Melted . | . . . Combat Hostiles . | . . . Parts Melted 2 | . 2 . Heat Transferred 300 | . 200 100 Parts Sabotaged . | . . . Parts Stolen . | . . . Parts Stripped . | . . . Power Chain Reactions 6 | . 5 1 Alert | -11 -10 -10 ------- Run | Yrd Mat Min Peak Influence 351 | 20 351 149 Initial 88 | . 13 88 Average 104 | 2 119 139 Maximum Alert Level 1 | . 1 . Low Security (%) 82 | 100 77 100 Level 1 17 | . 22 . Level 2 . | . . . Level 3 . | . . . Level 4 . | . . . Level 5 . | . . . High Security . | . . . Max Security . | . . . Squads Dispatched 3 | . 3 . Investigation 1 | . 1 . Extermination . | . . . Reinforcement 2 | . 2 . Assault . | . . . Garrison . | . . . Intercept . | . . . Searches Triggered . | . . . Construction Impeded . | . . . Haulers Reinforced . | . . . Active Scanning Responses . | . . . Cargo Convoy Interrupts . | . . . Stealth | -11 -10 -10 --------- Run | Yrd Mat Min Distress Signals 1 | . 1 . Communications Jammed . | . . . Distress Signals . | . . . Times Spotted 21 | 1 17 3 Peak Tracking Total 4 | 1 4 2 Tactical Retreats 1 | . 1 . Traps | -11 -10 -10 ------- Run | Yrd Mat Min Traps Triggered 2 | . 2 . Indirectly . | . . . Trap Hack Attempts . | . . . Triggered . | . . . Disarmed . | . . . Reprogrammed . | . . . Reused . | . . . Traps Extracted . | . . . Installed . | . . . Triggered . | . . . Machines | -11 -10 -10 ---------- Run | Yrd Mat Min Machines Disabled 2 | . 2 . Max in Single Turn 1 | . 1 . Machines Repaired . | . . . Machines Dismantled . | . . . Machines Sabotaged . | . . . Overloaded Fab Kills . | . . . Hacking | -11 -10 -10 --------- Run | Yrd Mat Min Machines Accessed 2 | . 2 . Terminals 1 | . 1 . Fabricators . | . . . Repair Stations 1 | . 1 . Recycling Units . | . . . Scanalyzers . | . . . Garrison Access . | . . . Total Hacks 10 | . 10 . Successful 9 | . 9 . Failed 1 | . 1 . Catastrophic . | . . . Database Lockouts . | . . . Manual . | . . . Terminals 3 | . 3 . Fabricators . | . . . Repair Stations 7 | . 7 . Recycling Units . | . . . Scanalyzers . | . . . Garrison Access . | . . . Terminal Hacks 3 | . 3 . Alert Level 1 | . 1 . Dispatch Records 1 | . 1 . Assault Status 1 | . 1 . Fabricator Hacks . | . . . Repair Station Hacks 6 | . 6 . Scan Component 4 | . 4 . Repair 2 | . 2 . Recycling Unit Hacks . | . . . Scanalyzer . | . . . Garrison Access Hacks . | . . . Unauthorized Hacks . | . . . Terminals . | . . . Fabricators . | . . . Repair Stations . | . . . Recycling Units . | . . . Scanalyzers . | . . . Garrison Access . | . . . Data Cores Recovered 1 | . 1 . Used . | . . . Hacking Detections 2 | . 2 . Full Trace Events . | . . . Feedback Events . | . . . Feedback Blocked . | . . . Robot Schematics Acquired . | . . . Robots Built . | . . . Authchips . | . . . Time . | . . . Total Robot Build Rating . | . . . Part Schematics Acquired . | . . . Parts Built . | . . . Authchips . | . . . Time . | . . . Total Part Build Rating . | . . . Parts Repaired 2 | . 2 . Time 52 | . 52 . Parts Recycled . | . . . Recycled Matter . | . . . Retrieved Matter . | . . . Retrieved Components . | . . . Parts Scanalyzed . | . . . Part Schematics Acquired . | . . . Parts Damaged . | . . . Bothacking | -11 -10 -10 ------------ Run | Yrd Mat Min Used RIF Installer . | . . . Robots Hacked . | . . . Non-combat . | . . . Combat . | . . . Robot Hacks Applied . | . . . Relay Couplers Released . | . . . Fabnet Peak Effective % . | . . . Robots Rewired . | . . . Allies Hacked . | . . . Hacks Repelled . | . . . Allies | -11 -10 -10 -------- Run | Yrd Mat Min Total Allies . | . . . Largest Group . | . . . Highest-Rated Group . | . . . Highest-Rated Ally . | . . . Total Orders . | . . . Ally Attacks . | . . . Total Damage . | . . . Kills . | . . . Allies Corrupted . | . . . Allies Melted . | . . . Intel | -11 -10 -10 ------- Run | Yrd Mat Min Robot Analysis Total . | . . . Derelict Logs Recovered . | . . . Drone Launches . | . . . Drone Recoveries . | . . . Exploration | -11 -10 -10 ------------- Run | Yrd Mat Min Turns Passed 730 | 104 560 66 Spaces Moved 637 | 85 514 38 Core 34 | 31 1 2 Treads . | . . . Legs 175 | 54 93 28 Wheels . | . . . Hover 227 | . 227 . Flight 201 | . 193 8 Fastest Speed 37 | 50 37 120 Average Speed 88 | 94 84 121 Slowest Speed 200 | 120 200 150 Overloaded Moves . | . . . Propulsion Burnouts . | . . . Robots Hopped . | . . . Cave-ins Triggered . | . . . Exploration Rate (%) 30 | 6 69 15 Regions Visited 2 Branch Regions 1 Pre-discovered Areas . | . . . Known Exits Taken . | . . . Unknown Exits Taken 2 | 1 1 . Scrap Searched . | . . . Spaces Dug . | . . . Terrain Destroyed 21 | . 15 6 Melee . | . . . Projectile . | . . . AOE 21 | . 15 6 Terrain Rammed . | . . . Walls Destroyed . | . . . Machines Disabled . | . . . Actions | -11 -10 -10 --------- Run | Yrd Mat Min Total 732 | 101 582 49 Wait . | . . . Move 635 | 84 513 38 Hop . | . . . Pick Up 22 | 8 11 3 Fast Attach 8 | . 8 . Attach 14 | 5 7 2 Detach . | . . . Swap . | . . . Drop 14 | . 13 1 Fire 38 | 4 29 5 Melee . | . . . Ram 1 | . 1 . Kick . | . . . Crush . | . . . Escape Stasis . | . . . Rewire . | . . . Trap . | . . . Miscellaneous . | . . . Route ------- -11/Scrapyard -10/Materials (discovered 4 exits: [*Mat x3] / [*Min]) -10/Mines (discovered 1 exit: [*Mat]) History --------- Turn | Location | Event 2 | -11/Scrapyard | Met Revision 17 85 | -11/Scrapyard | Discovered new exit (range 8) 105 | -11/Scrapyard | Entered Materials 181 | -10/Materials | Repaired Lgt. Ion Engine 318 | -10/Materials | Build established: Mutant 344 | -10/Materials | Repaired Lgt. Ion Engine 382 | -10/Materials | Discovered new exit (range 12) 462 | -10/Materials | Discovered new exit (range 14) 649 | -10/Materials | Discovered new exit (range 15) 650 | -10/Materials | Discovered new exit (range 16) 665 | -10/Materials | Entered Mines 715 | -10/Mines | Assembled infested the area 723 | -10/Mines | Discovered new exit (range 8) 724 | -10/Mines | Core integrity fell below 50% 730 | -10/Mines | Core integrity fell below 20% 731 | -10/Mines | Destroyed by D-53 Grenadier with Mini Grenade Launcher Last Messages --------------- 00688_ Acquired Corrupted Aluminum Leg. 00689_ U-05 Engineer lays Concrete. 00689_ Dropped Corrupted Aluminum Leg. 00694_ Acquired 10 matter. 00698_ Acquired Heat Sink. 00715_ ALERT: Infestation in the mines, dispatching Demolisher response squad. 00718_ C-30 ARC bursts open, deploying its payload. 00718_ D-53 Grenadier unfolds itself. 00718_ Hvy. EM Pulse Gun destroyed. 00718_ Sml. Battery destroyed. 00721_ Hvy. EM Pulse Gun destroyed. 00723_ EXIT=FOUND 00723_ Flight Unit destroyed. 00725_ The unstable cave ceiling collapses. 00729_ U-05 Engineer builds a Wall. 00729_ Aluminum Leg destroyed. 00731_ Med. Armor Plating destroyed. [Achievement: First Step to Greatness] Map ----- +----------------------------------------------------+ | | | | | ??????????????????????????????????????????????? | | ??????????????????????????????????????????????? | | ??????????????????????????????????????????????? | | ??????????????????????????????????????????????? | | ??????????????????????????????????????????????? | | ??????????????????????????????????????????????? | | ??????????????????????????????????????????????? | | ??????????????????????????????????????????????? | | ??????????????????????????????????????????????? | | ??????????????????????????????????????????????? | | ???????????????????????????????? ?????????????? | | ??????????????????????????????? ???????????? | | ??????????????????????????????? ???????????? | | ?????????????????????????????? ????????????? | | ?# ??????????????????????????? #????????????? | | ?# ?????????????????????????u #????????????? | | ?? ???????????????????????# #????????????? | | ??# ??????????????????#### #????????????? | | ???# ????????????????## #????????????? | | ???# ??????????????### #?????????????? | | ???? ????????????## t#??????????????? | | ????? ??????????## #???????????????? | | ??????? #?####????# < #???????????????? | | ????????#"##" ##???# @ #????????????????? | | ????????##"% #???# #???????????????? | | ????????#"= % #???# #???????????????? | | ????????#" ! ##??## d ##### ??????? | | ????????#" #### ??????? | | ????????### # d ##### ??????? | | ??????????## ### # # #?????? #????????? | | ???????????#####?# #????????????????? | | ????????????????# # #????????????????? | | ????????????????# ##????????????????? | | ????????????????## ##?????????????????? | | ?????????????????### # ##??????????????????? | | ??????????????????##u ##???????????????????? | | ??????????????????? ???????????????????? | | ?????????????????? ??????????????????? | | ?????????????????? ## ?????????????????? | | ?????????????????" #?## ????????????????? | | ???????????????? #???? #???????????????? | | ???????????????? ##????? #???????????????? | | ????????????????#???????# ##???????????????? | | ?????????????????????????# ##????????????????? | | ??????????????????????????###?????????????????? | | ??????????????????????????????????????????????? | | ??????????????????????????????????????????????? | | ??????????????????????????????????????????????? | +----------------------------------------------------+ Best States ------------- Heat Dissipation 25 Energy Generation 10 Energy Capacity 225 Matter Stores 300 Matter Capacity 300 Sight Range 16 Terrain Scan Density 10 Armor Coverage 225 Power Shielding 33 Evasion (%) 62 Item Schematics ----------------- None Robot Schematics ------------------ None Fabricated ------------ Nothing Alien Tech Used ----------------- None Achievements -------------- First Step to Greatness Part-time Mechanic Power Corrupts Uninvited Guest Challenges ------------ None Game ------ Seed TrackerThunderLauncher Manual? 0 Play Time 00:15:59 Cumulative 0.2 hours Start 2024.04.15 @ 02:23:08 End 2024.04.15 @ 13:38:01 Sessions 3 Manual Loads 0 Difficulty Rogue Special Mode None Game No. 1 Rogue 1 Adventurer 0 Explorer 0 Win Type - Total 0 Types 0/0/0/0/0/0/0/0/0 Lore% 0 Gallery% 1 Achievement% 1 Wizard Run 0 Options --------- Layout 1 ASCII 0 Keyboard 0 Movement Mouse Keybinds 0 Fullscreen 1 Font 24/Smallcaps Map View 50x35 Zoom Use 0% Tactical HUD 1 Map Filters NONE Filters NONE Steam 1 RUN: 2d0f0442-8126-4061-8a72-805e90ada1df